[Event "7th Cattolica Open-A 2020"]
[Site "Cattolica"]
[Date "2020.09.08"]
[Round "9.10"]
[White "Papadiamandis, Elliot"]
[Black "Orfini, Nicolo`"]
[Result "0-1"]
[ECO "C41"]
[WhiteElo "2204"]
[BlackElo "2225"]
[Annotator "ChessBase"]
[PlyCount "80"]
[EventDate "2020.08.31"]
[EventType "swiss"]
[EventCountry "ITA"]
[SourceTitle "playchess.com"]
[Source "ChessBase"]
[SourceQuality "1"]
[TimeControl "5400+30"]

1. e4 {[%emt 0:00:00]} d6 {[%emt 0:00:00]} 2. d4 {[%emt 0:00:06]} Nf6 {[%emt 0:00:06]} 3. Nc3 {[%emt 0:00:01]} e5 {[%emt 0:00:00]} 4. Nf3 {[%emt 0:00:51]} Nbd7 {[%emt 0:00:00]} 5. Bc4 {[%emt 0:00:10]} Be7 {[%emt 0:00:00]} 6. O-O {[%emt 0:00:18]} O-O {[%emt 1:32:54]} 7. Re1 {[%emt 0:00:48]} c6 {[%emt 0:00:00]} 8. a4 {[%emt 1:31:46]} b6 {[%emt 0:01:00]} 9. d5 {[%emt 0:00:00]} cxd5 {[%emt 0:00:30]} 10. Bxd5 {[%emt 0:00:00]} Nxd5 {[%emt 0:00:30]} 11. Nxd5 {[%emt 0:00:00]} Nf6 {[%emt 0:00:00]} 12. Nxe7+ {[%emt 0:00:00]} Qxe7 {[%emt 0:00:00]} 13. b3 {[%emt 0:00:00]} Bb7 {[%emt 0:00:00]} 14. Bg5 {[%emt 0:00:00]} h6 {[%emt 0:00:00]} 15. Bxf6 {[%emt 0:00:00]} Qxf6 {[%emt 0:00:00]} 16. c4 {[%emt 0:00:00]} Qe6 {[%emt 0:00:00]} 17. Nh4 {[%emt 0:00:00]} g6 {[%emt 0:00:00]} 18. Qd2 {[%emt 0:00:00]} Kh7 {[%emt 0:00:00]} 19. f4 {[%emt 0:00:00]} Qf6 {[%emt 0:00:00]} 20. g3 {[%emt 0:00:00]} exf4 {[%emt 0:00:00]} 21. Qxf4 {[%emt 0:00:00]} Qxf4 {[%emt 0:00:00]} 22. gxf4 {[%emt 0:00:00]} Rae8 {[%emt 0:00:00]} 23. Rad1 {[%emt 0:00:00]} Rxe4 {[%emt 0:00:00]} 24. Rxe4 {[%emt 0:00:00]} Bxe4 {[%emt 0:00:00]} 25. Rxd6 {[%emt 0:00:00]} Bc2 {[%emt 0:00:00]} 26. b4 {[%emt 0:00:00]} Rc8 {[%emt 0:00:00]} 27. Rd7 {[%emt 0:00:00]} Kg7 {[%emt 0:00:00]} 28. Nf3 {[%emt 0:00:00]} Rxc4 {[%emt 0:00:00]} 29. Ne5 {[%emt 0:00:00]} Rxf4 {[%emt 0:00:00]} 30. Rxa7 {[%emt 0:00:00]} Bb3 {[%emt 0:00:00]} 31. Nc6 {[%emt 0:00:00]} Rc4 {[%emt 0:00:00]} 32. b5 {[%emt 0:00:00]} Rxa4 {[%emt 0:00:00]} 33. Rb7 {[%emt 0:00:00]} Ra1+ {[%emt 0:00:00]} 34. Kf2 {[%emt 0:00:00]} Ra2+ {[%emt 0:00:00]} 35. Kg3 {[%emt 0:04:53]} Bd5 {[%emt 0:00:00]} 36. Rxb6 {[%emt 0:00:09]} Rg2+ {[%emt 0:00:00]} 37. Kh3 {[%emt 0:00:19]} Rg1 {[%emt 0:00:00]} 38. Nd4 {[%emt 0:00:14]} h5 {[%emt 0:00:00]} 39. Rd6 {[%emt 0:00:14]} Bc4 {[%emt 0:00:00]} 40. Kh4 {[%emt 0:00:35]} Rg4+ {[%emt 0:00:00]} 0-1